[Event "*** Titled Tuesday 3|2 Blitz"]
[Site "Chess.com"]
[Date "2016.10.04"]
[Round "1"]
[White "ZapataCharlesS"]
[Black "cheese111"]
[Result "1/2-1/2"]
[WhiteElo "2585"]
[BlackElo "2304"]
[TimeControl "180+2"]
[EndTime "17:09:27 PDT"]
[Termination "Game drawn by agreement"]

1. e4 {[%clk 0:03:01.8]} 1... d5 {[%clk 0:02:56.8]} 2. exd5 {[%clk 0:03:01.9]}
2... Qxd5 {[%clk 0:02:58.7]} 3. Nc3 {[%clk 0:03:02.1]} 3... Qd8 {[%clk
0:02:58.6]} 4. Nf3 {[%clk 0:03:02.5]} 4... Nf6 {[%clk 0:02:59.6]} 5. d4 {[%clk
0:03:04.4]} 5... Bg4 {[%clk 0:02:59.9]} 6. Be2 {[%clk 0:03:03.2]} 6... e6 {[%clk
0:02:58.4]} 7. O-O {[%clk 0:03:03.1]} 7... c6 {[%clk 0:02:55.7]} 8. h3 {[%clk
0:02:58.1]} 8... Bxf3 {[%clk 0:02:56.1]} 9. Bxf3 {[%clk 0:02:58.5]} 9... Bd6
{[%clk 0:02:56.7]} 10. Ne4 {[%clk 0:02:56.4]} 10... Nxe4 {[%clk 0:02:55.5]} 11.
Bxe4 {[%clk 0:02:56.6]} 11... Nd7 {[%clk 0:02:56.2]} 12. Be3 {[%clk 0:02:47.8]}
12... O-O {[%clk 0:02:56.2]} 13. c4 {[%clk 0:02:45.1]} 13... Qc7 {[%clk
0:02:40.2]} 14. Rc1 {[%clk 0:02:07.4]} 14... Rfd8 {[%clk 0:02:24.6]} 15. Bg5
{[%clk 0:01:50.7]} 15... Re8 {[%clk 0:02:22.7]} 16. Qh5 {[%clk 0:01:48.2]} 16...
g6 {[%clk 0:02:22.4]} 17. Qh4 {[%clk 0:01:49]} 17... Nf8 {[%clk 0:02:13]} 18.
Bf3 {[%clk 0:01:23]} 18... Be7 {[%clk 0:02:08.1]} 19. Bxe7 {[%clk 0:01:19.9]}
19... Qxe7 {[%clk 0:02:03.5]} 20. Qg3 {[%clk 0:01:18.3]} 20... Red8 {[%clk
0:01:57.8]} 21. Rfd1 {[%clk 0:01:18.2]} 21... Rac8 {[%clk 0:01:56.5]} 22. a3
{[%clk 0:01:15.3]} 22... Qf6 {[%clk 0:01:50.2]} 23. Qe5 {[%clk 0:01:01.6]} 23...
Qxe5 {[%clk 0:01:49]} 24. dxe5 {[%clk 0:01:02.4]} 24... Nd7 {[%clk 0:01:34.6]}
25. Re1 {[%clk 0:00:54.2]} 25... Nc5 {[%clk 0:01:35.1]} 26. Re2 {[%clk
0:00:54.7]} 26... Nb3 {[%clk 0:01:08.9]} 27. Rc3 {[%clk 0:00:54.4]} 27... Nd4
{[%clk 0:00:53.4]} 28. Re4 {[%clk 0:00:54]} 28... Nxf3+ {[%clk 0:00:51.4]} 29.
Rxf3 {[%clk 0:00:53.9]} 29... Rd2 {[%clk 0:00:52]} 30. b4 {[%clk 0:00:53.2]}
30... Rcd8 {[%clk 0:00:46.8]} 31. Kh2 {[%clk 0:00:53.3]} 31... R2d3 {[%clk
0:00:43.9]} 32. Kg3 {[%clk 0:00:51.7]} 32... Rxf3+ {[%clk 0:00:26]} 33. Kxf3
{[%clk 0:00:51.8]} 33... Rd3+ {[%clk 0:00:27.6]} 34. Re3 {[%clk 0:00:50.2]}
34... Rxe3+ {[%clk 0:00:20.2]} 35. Kxe3 {[%clk 0:00:50.7]} 35... Kf8 {[%clk
0:00:19.3]} 36. Kd4 {[%clk 0:00:49.7]} 36... b6 {[%clk 0:00:19.9]} 37. b5 {[%clk
0:00:47.2]} 37... c5+ {[%clk 0:00:20.1]} 38. Ke4 {[%clk 0:00:48.5]} 38... h6
{[%clk 0:00:18.8]} 39. f4 {[%clk 0:00:48.1]} 39... Ke7 {[%clk 0:00:19.2]} 40. g4
{[%clk 0:00:49.6]} 40... Kf8 {[%clk 0:00:20.2]} 41. f5 {[%clk 0:00:49.2]} 41...
Ke7 {[%clk 0:00:18.4]} 42. h4 {[%clk 0:00:47.5]} 42... Kf8 {[%clk 0:00:12.6]}
43. Kf4 {[%clk 0:00:48.6]} 43... Kg7 {[%clk 0:00:12.5]} 44. Ke4 {[%clk
0:00:37.9]} 44... Kg8 {[%clk 0:00:12.5]} 45. Ke3 {[%clk 0:00:39.1]} 45... Kg7
{[%clk 0:00:13.3]} 46. Kf4 {[%clk 0:00:38.2]} 46... Kg8 {[%clk 0:00:14.1]} 47.
Kg3 {[%clk 0:00:30.7]} 47... Kg7 {[%clk 0:00:14.9]} 48. Kf3 {[%clk 0:00:32]}
48... Kg8 {[%clk 0:00:15.2]} 49. Ke4 {[%clk 0:00:30.6]} 49... Kg7 {[%clk
0:00:16.1]} 50. Kf4 {[%clk 0:00:31.1]} 50... Kg8 {[%clk 0:00:16.6]} 51. fxg6
{[%clk 0:00:32.5]} 51... fxg6 {[%clk 0:00:17.4]} 52. h5 {[%clk 0:00:34.4]} 52...
g5+ {[%clk 0:00:17.9]} 53. Ke4 {[%clk 0:00:35.5]} 53... Kf7 {[%clk 0:00:19.1]}
54. Ke3 {[%clk 0:00:36.9]} 54... Ke7 {[%clk 0:00:20.2]} 55. a4 {[%clk
0:00:38.8]} 55... Kd7 {[%clk 0:00:21.2]} 56. Ke4 {[%clk 0:00:40.7]} 56... Kc7
{[%clk 0:00:21.9]} 57. Ke3 {[%clk 0:00:42.6]} 57... Kb7 {[%clk 0:00:22.8]} 58.
Ke4 {[%clk 0:00:44]} 58... Kc7 {[%clk 0:00:24.1]} 59. Ke3 {[%clk 0:00:45.3]}
59... Kd7 {[%clk 0:00:25.5]} 1/2-1/2

[Event "*** Titled Tuesday 3|2 Blitz"]
[Site "Chess.com"]
[Date "2016.10.04"]
[Round "1"]
[White "psv98"]
[Black "johnathan113"]
[Result "1-0"]
[WhiteElo "2604"]
[BlackElo "2309"]
[TimeControl "180+2"]
[EndTime "17:09:30 PDT"]
[Termination "psv98 won on time"]

1. e4 {[%clk 0:02:59.6]} 1... c5 {[%clk 0:03:00.5]} 2. Nc3 {[%clk 0:02:58.2]}
2... g6 {[%clk 0:03:01.2]} 3. g3 {[%clk 0:02:59.2]} 3... Bg7 {[%clk 0:03:02.4]}
4. Bg2 {[%clk 0:03:00.7]} 4... Nc6 {[%clk 0:03:03.8]} 5. d3 {[%clk 0:03:02.2]}
5... d6 {[%clk 0:03:03.7]} 6. Be3 {[%clk 0:03:02.9]} 6... Nf6 {[%clk 0:03:04.8]}
7. h3 {[%clk 0:02:59.8]} 7... O-O {[%clk 0:03:05.7]} 8. Nge2 {[%clk 0:03:00.4]}
8... Rb8 {[%clk 0:03:07]} 9. g4 {[%clk 0:03:00.5]} 9... b5 {[%clk 0:02:59.1]}
10. Ng3 {[%clk 0:02:58.3]} 10... Nd4 {[%clk 0:02:57.1]} 11. O-O {[%clk
0:02:52.3]} 11... b4 {[%clk 0:02:53.5]} 12. Nce2 {[%clk 0:02:53.4]} 12... Nd7
{[%clk 0:02:51]} 13. Rb1 {[%clk 0:02:28.1]} 13... Qa5 {[%clk 0:02:40.8]} 14. Qd2
{[%clk 0:02:21.6]} 14... Ne5 {[%clk 0:02:02.6]} 15. Bxd4 {[%clk 0:02:04.3]}
15... cxd4 {[%clk 0:02:03.3]} 16. f4 {[%clk 0:02:05.8]} 16... Nd7 {[%clk
0:01:48.1]} 17. f5 {[%clk 0:02:05.1]} 17... Bb7 {[%clk 0:01:32.1]} 18. g5 {[%clk
0:02:04]} 18... Rfc8 {[%clk 0:01:23.7]} 19. h4 {[%clk 0:01:57.6]} 19... Qc5
{[%clk 0:01:22.8]} 20. Rbc1 {[%clk 0:01:57.4]} 20... Ne5 {[%clk 0:01:18.9]} 21.
h5 {[%clk 0:01:56.7]} 21... Rf8 {[%clk 0:01:08.5]} 22. Qf4 {[%clk 0:01:55.9]}
22... Qa5 {[%clk 0:00:59]} 23. f6 {[%clk 0:01:52.1]} 23... exf6 {[%clk
0:00:54.8]} 24. gxf6 {[%clk 0:01:54]} 24... Bh8 {[%clk 0:00:56.4]} 25. Bh3
{[%clk 0:01:35.5]} 25... Bc8 {[%clk 0:00:47.8]} 26. Kg2 {[%clk 0:01:25]} 26...
Bxh3+ {[%clk 0:00:43.6]} 27. Kxh3 {[%clk 0:01:26.9]} 27... Qxa2 {[%clk
0:00:29.4]} 28. b3 {[%clk 0:01:27]} 28... Qa6 {[%clk 0:00:25.3]} 29. Nxd4 {[%clk
0:01:16.7]} 29... Qc8+ {[%clk 0:00:23]} 30. Kg2 {[%clk 0:01:05.6]} 30... Qg4
{[%clk 0:00:20.3]} 31. Qxg4 {[%clk 0:01:07]} 31... Nxg4 {[%clk 0:00:22.2]} 32.
Nc6 {[%clk 0:01:08.4]} 32... Nxf6 {[%clk 0:00:16.5]} 33. Nxb8 {[%clk 0:00:44.5]}
33... Rxb8 {[%clk 0:00:16.6]} 34. hxg6 {[%clk 0:00:42.9]} 34... hxg6 {[%clk
0:00:18.5]} 35. Kf3 {[%clk 0:00:41.8]} 35... Nd7 {[%clk 0:00:19.4]} 36. Ne2
{[%clk 0:00:38.1]} 36... Ne5+ {[%clk 0:00:20.2]} 37. Ke3 {[%clk 0:00:38.7]}
37... Bg7 {[%clk 0:00:18.7]} 38. d4 {[%clk 0:00:39]} 38... Bh6+ {[%clk 0:00:19]}
39. Nf4 {[%clk 0:00:32.4]} 39... Nc6 {[%clk 0:00:19.8]} 40. Ra1 {[%clk
0:00:28.9]} 40... Re8 {[%clk 0:00:18.1]} 41. Kd3 {[%clk 0:00:30]} 41... Re7
{[%clk 0:00:18]} 42. Nd5 {[%clk 0:00:30.4]} 42... Rb7 {[%clk 0:00:19.2]} 43. Ra6
{[%clk 0:00:30.8]} 43... Nd8 {[%clk 0:00:08]} 44. Rxd6 {[%clk 0:00:31.1]} 44...
Ne6 {[%clk 0:00:09.9]} 45. e5 {[%clk 0:00:29.2]} 45... Rb8 {[%clk 0:00:07.4]}
46. Rd7 {[%clk 0:00:27.9]} 46... Ng5 {[%clk 0:00:08]} 47. Nf6+ {[%clk
0:00:21.6]} 47... Kg7 {[%clk 0:00:07.2]} 48. d5 {[%clk 0:00:22.6]} 48... Nh3
{[%clk 0:00:03.4]} 49. e6 {[%clk 0:00:13.9]} 1-0

[Event "*** Titled Tuesday 3|2 Blitz"]
[Site "Chess.com"]
[Date "2016.10.04"]
[Round "1"]
[White "nonscitis"]
[Black "maciek_92"]
[Result "0-1"]
[WhiteElo "2314"]
[BlackElo "2606"]
[TimeControl "180+2"]
[EndTime "17:09:53 PDT"]
[Termination "maciek_92 won by resignation"]

1. e4 {[%clk 0:03:01.3]} 1... c5 {[%clk 0:03:00.1]} 2. Nf3 {[%clk 0:03:01.6]}
2... e6 {[%clk 0:03:01.4]} 3. d4 {[%clk 0:03:02.3]} 3... cxd4 {[%clk 0:03:03.3]}
4. Nxd4 {[%clk 0:03:03.9]} 4... Nc6 {[%clk 0:03:04.4]} 5. Nc3 {[%clk 0:03:03.6]}
5... a6 {[%clk 0:03:05.6]} 6. Nxc6 {[%clk 0:03:02.5]} 6... bxc6 {[%clk
0:03:07.5]} 7. Bd3 {[%clk 0:03:03.3]} 7... d5 {[%clk 0:03:08.9]} 8. O-O {[%clk
0:03:03.3]} 8... Nf6 {[%clk 0:03:10.2]} 9. b3 {[%clk 0:02:59.1]} 9... Bb4 {[%clk
0:03:03.9]} 10. Bb2 {[%clk 0:02:52.7]} 10... O-O {[%clk 0:03:04.8]} 11. a3
{[%clk 0:02:41.2]} 11... Be7 {[%clk 0:02:59.4]} 12. Qe2 {[%clk 0:02:29]} 12...
Qc7 {[%clk 0:02:57.4]} 13. Rfe1 {[%clk 0:02:22.5]} 13... d4 {[%clk 0:02:37.3]}
14. Na4 {[%clk 0:02:15.9]} 14... e5 {[%clk 0:02:38]} 15. f4 {[%clk 0:02:09.8]}
15... Ng4 {[%clk 0:02:29.3]} 16. fxe5 {[%clk 0:02:07.9]} 16... c5 {[%clk
0:02:09.6]} 17. Bc1 {[%clk 0:01:59.1]} 17... Qxe5 {[%clk 0:02:06.7]} 18. g3
{[%clk 0:01:56]} 18... Bg5 {[%clk 0:01:56.8]} 19. Nb2 {[%clk 0:01:47.6]} 19...
Bxc1 {[%clk 0:01:55.4]} 20. Raxc1 {[%clk 0:01:47.9]} 20... Be6 {[%clk
0:01:52.9]} 21. Bc4 {[%clk 0:01:45.3]} 21... Ne3 {[%clk 0:01:41.5]} 22. Bxe6
{[%clk 0:01:44.3]} 22... Qxe6 {[%clk 0:01:41.9]} 23. Nc4 {[%clk 0:01:37.8]}
23... Qxe4 {[%clk 0:01:14.5]} 24. Nxe3 {[%clk 0:01:37.7]} 24... Rfe8 {[%clk
0:01:14.6]} 25. Rcd1 {[%clk 0:01:27]} 25... Re6 {[%clk 0:01:02.2]} 26. Qc4
{[%clk 0:00:42.8]} 26... dxe3 {[%clk 0:00:59]} 27. Qxe4 {[%clk 0:00:34.6]} 27...
Rxe4 {[%clk 0:01:00.9]} 28. Rd3 {[%clk 0:00:35.6]} 28... Rae8 {[%clk 0:01:02.2]}
29. Rc3 {[%clk 0:00:36.3]} 29... R4e5 {[%clk 0:00:59.3]} 30. Kg2 {[%clk
0:00:34.4]} 30... h5 {[%clk 0:01:00.9]} 31. h4 {[%clk 0:00:34.6]} 31... R8e6
{[%clk 0:00:57.7]} 32. Rc4 {[%clk 0:00:35.1]} 32... Rf6 {[%clk 0:00:52.3]} 33.
Rf4 {[%clk 0:00:34.7]} 33... Rfe6 {[%clk 0:00:45.5]} 34. Re2 {[%clk 0:00:34.6]}
34... g6 {[%clk 0:00:45.4]} 35. Kf3 {[%clk 0:00:35.3]} 35... Kg7 {[%clk
0:00:46.1]} 36. b4 {[%clk 0:00:33.9]} 36... cxb4 {[%clk 0:00:46.1]} 37. axb4
{[%clk 0:00:35]} 37... f6 {[%clk 0:00:46.2]} 38. c4 {[%clk 0:00:35.7]} 38... g5
{[%clk 0:00:46]} 39. hxg5 {[%clk 0:00:35.1]} 39... fxg5 {[%clk 0:00:47.9]} 40.
Rd4 {[%clk 0:00:35.7]} 40... Kg6 {[%clk 0:00:46.8]} 41. c5 {[%clk 0:00:36.2]}
41... g4+ {[%clk 0:00:46.4]} 42. Kg2 {[%clk 0:00:37.1]} 42... Re4 {[%clk
0:00:44.3]} 43. Rd6 {[%clk 0:00:35.7]} 43... Rxd6 {[%clk 0:00:43.9]} 44. cxd6
{[%clk 0:00:36.8]} 44... Kf7 {[%clk 0:00:45.2]} 45. Kf1 {[%clk 0:00:34.1]} 45...
Ke6 {[%clk 0:00:45.2]} 46. Ra2 {[%clk 0:00:34.9]} 46... Rxb4 {[%clk 0:00:38.5]}
47. Ke2 {[%clk 0:00:35.6]} 47... Rb6 {[%clk 0:00:36.4]} 48. Kxe3 {[%clk
0:00:36.6]} 48... Kxd6 {[%clk 0:00:27.1]} 49. Kf4 {[%clk 0:00:37.5]} 49... Rb4+
{[%clk 0:00:21]} 50. Kg5 {[%clk 0:00:38.5]} 50... Rb5+ {[%clk 0:00:22.4]} 51.
Kf4 {[%clk 0:00:22.9]} 51... a5 {[%clk 0:00:24.3]} 52. Ke4 {[%clk 0:00:24.1]}
52... Kc6 {[%clk 0:00:25.7]} 53. Kd4 {[%clk 0:00:23.1]} 53... Kb6 {[%clk
0:00:26.5]} 54. Kc4 {[%clk 0:00:24.5]} 54... Rb4+ {[%clk 0:00:27.7]} 55. Kc3
{[%clk 0:00:25.2]} 55... Rb5 {[%clk 0:00:28.6]} 56. Rh2 {[%clk 0:00:25.1]} 56...
Rc5+ {[%clk 0:00:29.2]} 57. Kb3 {[%clk 0:00:26.1]} 57... Kb5 {[%clk 0:00:30.9]}
58. Kb2 {[%clk 0:00:25.9]} 58... a4 {[%clk 0:00:32.3]} 59. Rh1 {[%clk
0:00:27.2]} 59... Kb4 {[%clk 0:00:33.6]} 60. Rf1 {[%clk 0:00:28.2]} 60... a3+
{[%clk 0:00:34.9]} 61. Kb1 {[%clk 0:00:29.2]} 61... Kb3 {[%clk 0:00:34.4]} 62.
Re1 {[%clk 0:00:30.1]} 62... Rc3 {[%clk 0:00:34.7]} 63. Ka1 {[%clk 0:00:31.1]}
63... Rxg3 {[%clk 0:00:35.2]} 64. Rd1 {[%clk 0:00:32.1]} 64... h4 {[%clk
0:00:34.9]} 65. Rc1 {[%clk 0:00:33.3]} 65... Rg2 {[%clk 0:00:34.3]} 0-1

[Event "*** Titled Tuesday 3|2 Blitz"]
[Site "Chess.com"]
[Date "2016.10.04"]
[Round "1"]
[White "Fins0905"]
[Black "BCNUM8"]
[Result "1-0"]
[WhiteElo "2487"]
[BlackElo "2133"]
[TimeControl "180+2"]
[EndTime "17:10:07 PDT"]
[Termination "Fins0905 won on time"]

1. d4 {[%clk 0:03:00.3]} 1... Nc6 {[%clk 0:03:00.4]} 2. Nf3 {[%clk 0:03:00.7]}
2... d5 {[%clk 0:03:00]} 3. c4 {[%clk 0:03:01]} 3... e5 {[%clk 0:03:00.8]} 4.
dxe5 {[%clk 0:03:00.4]} 4... Bb4+ {[%clk 0:03:01.6]} 5. Bd2 {[%clk 0:02:58]}
5... dxc4 {[%clk 0:03:02.5]} 6. e3 {[%clk 0:02:57]} 6... Be6 {[%clk 0:03:03.2]}
7. Qa4 {[%clk 0:02:43]} 7... Qe7 {[%clk 0:03:03]} 8. a3 {[%clk 0:02:38.8]} 8...
Bxd2+ {[%clk 0:02:56.4]} 9. Nbxd2 {[%clk 0:02:40.7]} 9... a6 {[%clk 0:02:57.3]}
10. Bxc4 {[%clk 0:02:40]} 10... Bxc4 {[%clk 0:02:55.6]} 11. Qxc4 {[%clk
0:02:38]} 11... Nxe5 {[%clk 0:02:56.6]} 12. Nxe5 {[%clk 0:02:25.3]} 12... Qxe5
{[%clk 0:02:58.5]} 13. O-O {[%clk 0:02:25.9]} 13... Nf6 {[%clk 0:02:59.3]} 14.
Nf3 {[%clk 0:02:20.6]} 14... Qe7 {[%clk 0:02:57.4]} 15. Nd4 {[%clk 0:02:14.1]}
15... O-O {[%clk 0:02:52.7]} 16. Rac1 {[%clk 0:02:11.5]} 16... c6 {[%clk
0:02:53.5]} 17. b4 {[%clk 0:02:10.3]} 17... g6 {[%clk 0:02:51.8]} 18. a4 {[%clk
0:02:09.1]} 18... Ne4 {[%clk 0:02:49.9]} 19. Rfd1 {[%clk 0:02:07]} 19... Rac8
{[%clk 0:02:42]} 20. f3 {[%clk 0:01:38.8]} 20... Nf6 {[%clk 0:02:11.6]} 21. e4
{[%clk 0:01:39]} 21... Nh5 {[%clk 0:02:07.5]} 22. Ne2 {[%clk 0:01:32]} 22... b5
{[%clk 0:02:05.3]} 23. axb5 {[%clk 0:01:27.1]} 23... cxb5 {[%clk 0:02:07.2]} 24.
Qxc8 {[%clk 0:01:26.5]} 24... Rxc8 {[%clk 0:02:08.2]} 25. Rxc8+ {[%clk
0:01:28.2]} 25... Kg7 {[%clk 0:02:10]} 26. Rc5 {[%clk 0:01:28.5]} 26... a5
{[%clk 0:02:07.6]} 27. Rxb5 {[%clk 0:01:26.2]} 27... axb4 {[%clk 0:02:08.6]} 28.
Rb1 {[%clk 0:01:09.6]} 28... Qa7+ {[%clk 0:02:02.5]} 29. Kf1 {[%clk 0:01:09]}
29... Qc7 {[%clk 0:01:45.9]} 30. h3 {[%clk 0:01:00.3]} 30... Ng3+ {[%clk
0:01:41.5]} 31. Nxg3 {[%clk 0:01:00.4]} 31... Qxg3 {[%clk 0:01:43.4]} 32. R5xb4
{[%clk 0:01:01.4]} 32... h5 {[%clk 0:01:36.9]} 33. Rc4 {[%clk 0:00:57.9]} 33...
Qd6 {[%clk 0:01:35]} 34. Kg1 {[%clk 0:00:51.5]} 34... Qd3 {[%clk 0:01:31.1]} 35.
Rbc1 {[%clk 0:00:50.1]} 35... h4 {[%clk 0:01:31.2]} 36. Kh1 {[%clk 0:00:50]}
36... Qd2 {[%clk 0:01:18.6]} 37. Rc7 {[%clk 0:00:48.9]} 37... g5 {[%clk
0:01:18.8]} 38. Rb1 {[%clk 0:00:44.1]} 38... Qe3 {[%clk 0:01:08.2]} 39. Rc2
{[%clk 0:00:34.3]} 39... Qd3 {[%clk 0:01:08.6]} 40. Rbc1 {[%clk 0:00:34.5]}
40... Qe3 {[%clk 0:01:08.2]} 41. Rd1 {[%clk 0:00:34.3]} 41... Qf4 {[%clk
0:01:07.4]} 42. Rc5 {[%clk 0:00:34.4]} 42... Qe3 {[%clk 0:01:08.5]} 43. Rf5
{[%clk 0:00:34.1]} 43... f6 {[%clk 0:01:00.8]} 44. Kh2 {[%clk 0:00:31]} 44...
Qf2 {[%clk 0:01:00.7]} 45. Rb1 {[%clk 0:00:21.1]} 45... Kg6 {[%clk 0:00:58.5]}
46. Ra1 {[%clk 0:00:18.2]} 46... Qb2 {[%clk 0:00:56.2]} 47. Ra6 {[%clk 0:00:18]}
47... Qb8+ {[%clk 0:00:56.1]} 48. f4 {[%clk 0:00:18.6]} 48... gxf4 {[%clk
0:00:50.5]} 49. Raxf6+ {[%clk 0:00:19.4]} 49... Kg7 {[%clk 0:00:51.9]} 50. Rxf4
{[%clk 0:00:19.7]} 50... Qe5 {[%clk 0:00:47.4]} 51. Rf5 {[%clk 0:00:20.2]} 51...
Qc7 {[%clk 0:00:47.4]} 52. e5 {[%clk 0:00:21.5]} 52... Qc3 {[%clk 0:00:43.3]}
53. Rg4+ {[%clk 0:00:21.8]} 53... Kh6 {[%clk 0:00:42.8]} 54. Rff4 {[%clk
0:00:22.5]} 54... Qxe5 {[%clk 0:00:42.6]} 55. Rxh4+ {[%clk 0:00:23.8]} 55... Kg6
{[%clk 0:00:44.1]} 56. Rg4+ {[%clk 0:00:24.9]} 56... Kh6 {[%clk 0:00:45.7]} 57.
h4 {[%clk 0:00:24.4]} 57... Kh5 {[%clk 0:00:45]} 58. Rg5+ {[%clk 0:00:22.8]}
58... Kh6 {[%clk 0:00:46.9]} 59. Rxe5 {[%clk 0:00:23.5]} 1-0

[Event "*** Titled Tuesday 3|2 Blitz"]
[Site "Chess.com"]
[Date "2016.10.04"]
[Round "1"]
[White "RobertoJBM"]
[Black "Rating-Schmating"]
[Result "0-1"]
[WhiteElo "2482"]
[BlackElo "2236"]
[TimeControl "180+2"]
[EndTime "17:11:47 PDT"]
[Termination "Rating-Schmating won by checkmate"]

1. d4 {[%clk 0:03:00.1]} 1... Nf6 {[%clk 0:02:59.7]} 2. c4 {[%clk 0:03:00.9]}
2... e6 {[%clk 0:03:00.4]} 3. Nf3 {[%clk 0:03:00.9]} 3... Bb4+ {[%clk
0:03:00.6]} 4. Bd2 {[%clk 0:03:01.1]} 4... Qe7 {[%clk 0:03:01.2]} 5. g3 {[%clk
0:03:01.2]} 5... b6 {[%clk 0:03:00.6]} 6. Bg2 {[%clk 0:03:02.6]} 6... Bb7 {[%clk
0:03:01.8]} 7. O-O {[%clk 0:03:03.7]} 7... Bxd2 {[%clk 0:03:02.7]} 8. Nbxd2
{[%clk 0:03:04.3]} 8... c5 {[%clk 0:03:03.3]} 9. Rc1 {[%clk 0:03:05.2]} 9...
cxd4 {[%clk 0:03:04.4]} 10. Nxd4 {[%clk 0:03:07.1]} 10... Bxg2 {[%clk
0:03:05.6]} 11. Kxg2 {[%clk 0:03:09]} 11... a6 {[%clk 0:03:05.2]} 12. Qb3 {[%clk
0:03:07.6]} 12... Qc5 {[%clk 0:03:02.5]} 13. N2f3 {[%clk 0:03:07.8]} 13... O-O
{[%clk 0:03:01.1]} 14. Rfd1 {[%clk 0:03:06.3]} 14... Nc6 {[%clk 0:02:59.2]} 15.
e3 {[%clk 0:03:06.7]} 15... Rab8 {[%clk 0:02:55.8]} 16. Qc3 {[%clk 0:03:06]}
16... Nxd4 {[%clk 0:02:48.9]} 17. Qxd4 {[%clk 0:03:02.4]} 17... Qxd4 {[%clk
0:02:45.1]} 18. Nxd4 {[%clk 0:03:04.3]} 18... d5 {[%clk 0:02:40.3]} 19. Nc6
{[%clk 0:03:02]} 19... Rb7 {[%clk 0:02:40.5]} 20. Nb4 {[%clk 0:03:00.9]} 20...
a5 {[%clk 0:02:38]} 21. Nc6 {[%clk 0:02:56.3]} 21... Rc8 {[%clk 0:02:37.2]} 22.
Ne5 {[%clk 0:02:57]} 22... dxc4 {[%clk 0:02:34.8]} 23. Rxc4 {[%clk 0:02:57.2]}
23... Re8 {[%clk 0:02:29.5]} 24. Rd6 {[%clk 0:02:56.2]} 24... b5 {[%clk
0:02:26.7]} 25. Rcc6 {[%clk 0:02:57.1]} 25... Nd5 {[%clk 0:02:25]} 26. a3 {[%clk
0:02:56.8]} 26... h6 {[%clk 0:02:23.7]} 27. Nd3 {[%clk 0:02:57.4]} 27... Reb8
{[%clk 0:02:17.8]} 28. Nc5 {[%clk 0:02:58.1]} 28... Rc7 {[%clk 0:02:15.2]} 29.
Rxc7 {[%clk 0:02:49.1]} 29... Nxc7 {[%clk 0:02:16.2]} 30. Nd7 {[%clk 0:02:48.1]}
30... Rb7 {[%clk 0:02:10.4]} 31. Nc5 {[%clk 0:02:48.9]} 31... Rb8 {[%clk
0:02:10.7]} 32. Rc6 {[%clk 0:02:49.1]} 32... Nd5 {[%clk 0:02:09.2]} 33. e4
{[%clk 0:02:49.9]} 33... Nf6 {[%clk 0:02:09.2]} 34. Kf3 {[%clk 0:02:45.4]} 34...
g5 {[%clk 0:01:58.8]} 35. h3 {[%clk 0:02:45.2]} 35... h5 {[%clk 0:01:58.9]} 36.
Ke3 {[%clk 0:02:34]} 36... g4 {[%clk 0:01:47.2]} 37. h4 {[%clk 0:02:34.6]} 37...
Kg7 {[%clk 0:01:45.8]} 38. Rc7 {[%clk 0:02:33.1]} 38... Ne8 {[%clk 0:01:37.7]}
39. Ra7 {[%clk 0:02:31.5]} 39... Nd6 {[%clk 0:01:31.5]} 40. b3 {[%clk
0:02:14.7]} 40... Kg6 {[%clk 0:01:25.9]} 41. Rxa5 {[%clk 0:02:07.9]} 41... Rc8
{[%clk 0:01:24.3]} 42. Ra6 {[%clk 0:02:09]} 42... Rxc5 {[%clk 0:01:24.3]} 43.
Rxd6 {[%clk 0:02:09.5]} 43... Rc3+ {[%clk 0:01:24.4]} 44. Rd3 {[%clk 0:02:10.5]}
44... Rc2 {[%clk 0:01:24.5]} 45. f4 {[%clk 0:02:10.1]} 45... Rg2 {[%clk
0:01:23.5]} 46. Kd4 {[%clk 0:02:11]} 46... Ra2 {[%clk 0:01:21.4]} 47. b4 {[%clk
0:02:11.8]} 47... Rc2 {[%clk 0:01:21]} 48. Rc3 {[%clk 0:02:13]} 48... Re2 {[%clk
0:01:12.1]} 49. e5 {[%clk 0:02:13.2]} 49... Rd2+ {[%clk 0:01:09.1]} 50. Rd3
{[%clk 0:02:14.1]} 50... Rc2 {[%clk 0:01:09.8]} 51. Rc3 {[%clk 0:02:15.6]} 51...
Rd2+ {[%clk 0:01:11.2]} 52. Kc5 {[%clk 0:02:16.8]} 52... Rd5+ {[%clk 0:01:12.3]}
53. Kb6 {[%clk 0:02:17.7]} 53... Kf5 {[%clk 0:01:13.6]} 54. Ka5 {[%clk
0:02:18.7]} 54... Ke4 {[%clk 0:01:13]} 55. a4 {[%clk 0:02:20]} 55... bxa4+
{[%clk 0:01:12.4]} 56. Kxa4 {[%clk 0:02:21.9]} 56... Kd4 {[%clk 0:01:12.4]} 57.
Rb3 {[%clk 0:02:23.1]} 57... Kc4 {[%clk 0:01:09.6]} 58. Rb1 {[%clk 0:02:17.4]}
58... Rd3 {[%clk 0:01:01.9]} 59. Rc1+ {[%clk 0:02:18.6]} 59... Kd5 {[%clk
0:01:02.9]} 60. Rg1 {[%clk 0:02:17.4]} 60... Kc6 {[%clk 0:01:03.2]} 61. b5+
{[%clk 0:01:59.6]} 61... Kb6 {[%clk 0:01:01.6]} 62. Kb4 {[%clk 0:02:01.5]} 62...
Rd4+ {[%clk 0:01:01.8]} 63. Kc3 {[%clk 0:02:02.6]} 63... Re4 {[%clk 0:01:03]}
64. Kd3 {[%clk 0:02:03.4]} 64... Rb4 {[%clk 0:01:03.5]} 65. Rc1 {[%clk
0:01:44.8]} 65... Rb3+ {[%clk 0:01:02]} 66. Ke4 {[%clk 0:01:43.8]} 66... Rxb5
{[%clk 0:00:55.7]} 67. Rc3 {[%clk 0:01:35.9]} 67... Rb4+ {[%clk 0:00:56.6]} 68.
Kd3 {[%clk 0:01:36.6]} 68... Rb1 {[%clk 0:00:54.9]} 69. Kc4 {[%clk 0:01:37.4]}
69... Rd1 {[%clk 0:00:51.7]} 70. Ra3 {[%clk 0:01:35.1]} 70... Rc1+ {[%clk
0:00:51.6]} 71. Kd4 {[%clk 0:01:36.2]} 71... Rd1+ {[%clk 0:00:52.5]} 72. Ke3
{[%clk 0:01:37.7]} 72... Re1+ {[%clk 0:00:51.5]} 73. Kf2 {[%clk 0:01:38.9]}
73... Rb1 {[%clk 0:00:52.2]} 74. Rc3 {[%clk 0:01:38.2]} 74... Rb2+ {[%clk
0:00:48.7]} 75. Ke3 {[%clk 0:01:39.5]} 75... Rg2 {[%clk 0:00:47.4]} 76. Ke4
{[%clk 0:01:40.8]} 76... Kb7 {[%clk 0:00:44.1]} 77. Kd4 {[%clk 0:01:23.5]} 77...
Rg1 {[%clk 0:00:42.2]} 78. Kc5 {[%clk 0:01:21.6]} 78... Kc7 {[%clk 0:00:43]} 79.
Kd4+ {[%clk 0:01:22.5]} 79... Kd7 {[%clk 0:00:43.7]} 80. Ke4 {[%clk 0:01:24.4]}
80... Re1+ {[%clk 0:00:44.6]} 81. Re3 {[%clk 0:01:24.1]} 81... Rxe3+ {[%clk
0:00:36.4]} 82. Kxe3 {[%clk 0:01:26]} 82... Kc6 {[%clk 0:00:37.8]} 83. Ke4
{[%clk 0:01:26.1]} 83... Kc5 {[%clk 0:00:38.9]} 84. f5 {[%clk 0:01:25.9]} 84...
Kc4 {[%clk 0:00:38.5]} 85. Kf4 {[%clk 0:00:56.3]} 85... Kd4 {[%clk 0:00:35.5]}
86. fxe6 {[%clk 0:00:47.7]} 86... fxe6 {[%clk 0:00:36]} 87. Kg5 {[%clk
0:00:49.6]} 87... Kxe5 {[%clk 0:00:36.9]} 88. Kxh5 {[%clk 0:00:51.5]} 88... Kf5
{[%clk 0:00:32]} 89. Kh6 {[%clk 0:00:52.9]} 89... e5 {[%clk 0:00:29.2]} 90. Kg7
{[%clk 0:00:54.1]} 90... e4 {[%clk 0:00:30.4]} 91. h5 {[%clk 0:00:55.5]} 91...
e3 {[%clk 0:00:32]} 92. h6 {[%clk 0:00:57.4]} 92... e2 {[%clk 0:00:33.6]} 93. h7
{[%clk 0:00:59.3]} 93... e1=Q {[%clk 0:00:35]} 94. h8=Q {[%clk 0:01:01.2]} 94...
Qe7+ {[%clk 0:00:35.9]} 95. Kh6 {[%clk 0:01:01.3]} 95... Qg5+ {[%clk 0:00:36.4]}
96. Kh7 {[%clk 0:01:02.5]} 96... Qg6# {[%clk 0:00:37.7]} 0-1